[Event "ESTCC 65 2019"]
[Site "Mali Losinj"]
[Date "2019.09.26"]
[Round "9.15"]
[White "Malmdin, Nils-Ake"]
[Black "Jorgensen, Arne Bjorn"]
[Result "1/2-1/2"]
[ECO "C00"]
[WhiteElo "2142"]
[BlackElo "1996"]
[Annotator "NA"]
[PlyCount "61"]
[EventDate "2019.09.18"]
[EventType "team-tourn"]
[EventCountry "CRO"]
[SourceTitle "playchess.com"]
[Source "ChessBase"]
[SourceQuality "1"]
[WhiteTeam "Sweden"]
[BlackTeam "Denmark"]
[WhiteTeamCountry "SWE"]
[BlackTeamCountry "DEN"]
[TimeControl "40/5400+30:1800+30"]

1. Nf3 {[%emt 0:00:30]} d5 {[%emt 0:00:30]} 2. g3 {[%emt 0:00:30]} c5 {[%emt 0:00:00]} 3. Bg2 {[%emt 0:00:30]} Nc6 {[%emt 0:00:00]} 4. d3 {[%emt 0:00:30]} Nf6 {[%emt 0:00:30]} 5. O-O {[%emt 0:00:30]} e6 {[%emt 0:00:30]} 6. Nbd2 {[%emt 0:00:30]} Be7 {[%emt 0:00:00]} 7. e4 {[%emt 0:00:30]} O-O {[%emt 0:00:00]} 8. Re1 {[%emt 0:00:30]} b5 {[%emt 0:01:30]} 9. Qe2 {[%emt 0:05:30]} Bb7 {[%emt 0:05:30]} 10. e5 {[%emt 0:10:30]} Nd7 {[%emt 0:00:30]} 11. Nf1 {[%emt 0:00:30]} a5 {[%emt 0:02:30]} 12. h4 {[%emt 0:00:30]} b4 {[%emt 0:05:30]} 13. N1h2 {[%emt 0:01:30]} Ba6 {[%emt 0:05:30]} 14. Bg5 {[%emt 0:11:30]} c4 {[%emt 0:05:30]} 15. dxc4 {[%emt 0:17:30]} Bxc4 {[%emt 0:01:30]} 16. Qd1 {[%emt 0:00:30]} Rc8 {[%emt 0:03:30]} 17. Ng4 {[%emt 0:01:30]} Re8 {[%emt 0:03:30]} 18. Bxe7 {[%emt 0:09:30]} Nxe7 {[%emt 0:03:30]} 19. Ne3 {[%emt 0:01:30]} Ba6 {[%emt 0:03:30]} 20. h5 {[%emt 0:04:30]} Qc7 {[%emt 0:02:30]} 21. h6 {[%emt 0:00:30]} Ng6 {[%emt 0:01:30]} 22. hxg7 {[%emt 0:00:30]} Ndxe5 {[%emt 0:03:30]} 23. Nxe5 {[%emt 0:02:30]} Qxe5 {[%emt 0:06:30]} 24. Nxd5 {[%emt 0:00:30]} Qxg7 {[%emt 0:01:30]} 25. Ne3 {[%emt 0:00:30]} Rb8 {[%emt 0:08:30]} 26. Qh5 {[%emt 0:04:30]} Rb5 {[%emt 0:07:30]} 27. Qd1 {[%emt 0:00:30]} Reb8 {[%emt 0:02:30]} 28. a4 {[%emt 0:04:30]} bxa3 {[%emt 0:05:30]} 29. bxa3 {[%emt 0:01:30]} R5b6 {[%emt 0:01:30]} 30. Qh5 {[%emt 0:01:20]} Rb5 {[%emt 0:00:30]} 31. Qd1 {[%emt 0:00:43]} 1/2-1/2

[Event "ESTCC 65 2019"]
[Site "Mali Losinj"]
[Date "2019.09.26"]
[Round "9.16"]
[White "Mortensen, Steen Juul"]
[Black "Friberg, Hans"]
[Result "0-1"]
[ECO "D17"]
[WhiteElo "1892"]
[BlackElo "2119"]
[Annotator "NA"]
[PlyCount "54"]
[EventDate "2019.09.18"]
[EventType "team-tourn"]
[EventCountry "CRO"]
[SourceTitle "playchess.com"]
[Source "ChessBase"]
[SourceQuality "1"]
[WhiteTeam "Denmark"]
[BlackTeam "Sweden"]
[WhiteTeamCountry "DEN"]
[BlackTeamCountry "SWE"]
[TimeControl "40/5400+30:1800+30"]

1. d4 {[%emt 0:00:30]} d5 {[%emt 0:00:30]} 2. Nf3 {[%emt 0:00:00]} Nf6 {[%emt 0:00:30]} 3. c4 {[%emt 0:00:00]} c6 {[%emt 0:00:30]} 4. Nc3 {[%emt 0:00:30]} dxc4 {[%emt 0:00:30]} 5. a4 {[%emt 0:00:30]} Bf5 {[%emt 0:00:30]} 6. Ne5 {[%emt 0:03:30]} e6 {[%emt 0:03:30]} 7. Nxc4 {[%emt 0:03:30]} Bb4 {[%emt 0:03:30]} 8. Bg5 {[%emt 0:10:30]} h6 {[%emt 0:09:30]} 9. Bxf6 {[%emt 0:01:30]} Qxf6 {[%emt 0:00:30]} 10. g3 {[%emt 0:08:30]} Be4 {[%emt 0:07:30]} 11. f3 {[%emt 0:03:30]} Bh7 {[%emt 0:00:30]} 12. Kf2 {[%emt 0:04:30]} O-O {[%emt 0:04:30]} 13. Kg2 {[%emt 0:02:30]} Rd8 {[%emt 0:09:30]} 14. Qb3 {[%emt 0:03:30]} Qe7 {[%emt 0:03:30]} 15. Rd1 {[%emt 0:05:30]} c5 {[%emt 0:10:30]} 16. e3 {[%emt 0:16:30]} cxd4 {[%emt 0:11:30]} 17. exd4 {[%emt 0:00:30]} Na6 {[%emt 0:02:30]} 18. Bd3 {[%emt 0:07:30]} Bxd3 {[%emt 0:00:30]} 19. Rxd3 {[%emt 0:00:00]} Bxc3 {[%emt 0:00:30]} 20. bxc3 {[%emt 0:01:00]} Rac8 {[%emt 0:03:30]} 21. Rhd1 {[%emt 0:02:30]} b6 {[%emt 0:02:30]} 22. Ne5 {[%emt 0:02:30]} Qd6 {[%emt 0:06:56]} 23. R1d2 {[%emt 0:08:30]} Rc7 {[%emt 0:08:38]} 24. Qb5 {[%emt 0:03:56]} Nb8 {[%emt 0:00:46]} 25. a5 {[%emt 0:03:11]} bxa5 {[%emt 0:03:00]} 26. Qxa5 {[%emt 0:00:57]} Nc6 {[%emt 0:02:40]} 27. c4 {[%emt 0:04:07]} Nxa5 {[%emt 0:00:40]} 0-1

[Event "ESTCC 65 2019"]
[Site "Mali Losinj"]
[Date "2019.09.26"]
[Round "9.17"]
[White "Vadlja, Stjepan"]
[Black "Beilfuss, Wilfried"]
[Result "0-1"]
[ECO "A56"]
[WhiteElo "1636"]
[BlackElo "2192"]
[Annotator "NA"]
[PlyCount "86"]
[EventDate "2019.09.18"]
[EventType "team-tourn"]
[EventCountry "CRO"]
[SourceTitle "playchess.com"]
[Source "ChessBase"]
[SourceQuality "1"]
[WhiteTeam "Croatia"]
[BlackTeam "Germany"]
[WhiteTeamCountry "CRO"]
[BlackTeamCountry "GER"]
[TimeControl "40/5400+30:1800+30"]

1. d4 {[%emt 0:00:30]} Nf6 {[%emt 0:00:30]} 2. c4 {[%emt 0:00:30]} c5 {[%emt 0:00:00]} 3. Nc3 {[%emt 0:00:30]} cxd4 {[%emt 0:01:00]} 4. Qxd4 {[%emt 0:00:00]} Nc6 {[%emt 0:00:30]} 5. Qd1 {[%emt 0:00:00]} e6 {[%emt 0:01:30]} 6. Nf3 {[%emt 0:00:30]} Bb4 {[%emt 0:01:30]} 7. Qc2 {[%emt 0:00:30]} d5 {[%emt 0:02:30]} 8. e3 {[%emt 0:00:30]} Ne4 {[%emt 0:06:30]} 9. a3 {[%emt 0:00:30]} Qa5 {[%emt 0:04:30]} 10. Bd2 {[%emt 0:00:30]} Nxd2 {[%emt 0:02:30]} 11. Nxd2 {[%emt 0:00:30]} Bxc3 {[%emt 0:08:30]} 12. bxc3 {[%emt 0:00:00]} dxc4 {[%emt 0:02:30]} 13. Nxc4 {[%emt 0:00:00]} Qc5 {[%emt 0:01:30]} 14. Bd3 {[%emt 0:01:30]} h6 {[%emt 0:03:30]} 15. O-O {[%emt 0:00:30]} O-O {[%emt 0:00:30]} 16. Nd2 {[%emt 0:00:30]} Rd8 {[%emt 0:04:30]} 17. Nb3 {[%emt 0:01:30]} Qe7 {[%emt 0:03:30]} 18. Rfd1 {[%emt 0:00:30]} Bd7 {[%emt 0:00:30]} 19. Be4 {[%emt 0:02:30]} Rac8 {[%emt 0:01:30]} 20. Nd4 {[%emt 0:00:30]} Na5 {[%emt 0:03:30]} 21. Ne2 {[%emt 0:03:30]} Bb5 {[%emt 0:05:30]} 22. Rxd8+ {[%emt 0:00:30]} Rxd8 {[%emt 0:00:30]} 23. Nd4 {[%emt 0:00:30]} Bc4 {[%emt 0:01:30]} 24. Bf3 {[%emt 0:00:30]} Rc8 {[%emt 0:00:30]} 25. Qa4 {[%emt 0:01:30]} Qc7 {[%emt 0:03:30]} 26. Rc1 {[%emt 0:00:30]} a6 {[%emt 0:04:30]} 27. Qb4 {[%emt 0:03:30]} g6 {[%emt 0:00:30]} 28. h3 {[%emt 0:01:30]} e5 {[%emt 0:00:30]} 29. Ne2 {[%emt 0:00:00]} e4 {[%emt 0:06:30]} 30. Nd4 {[%emt 0:02:00]} exf3 {[%emt 0:00:30]} 31. Nxf3 {[%emt 0:00:30]} Rd8 {[%emt 0:02:30]} 32. Nd4 {[%emt 0:00:30]} Bd5 {[%emt 0:06:30]} 33. Ne2 {[%emt 0:03:30]} Nc6 {[%emt 0:02:32]} 34. Qh4 {[%emt 0:01:30]} Kh7 {[%emt 0:03:05]} 35. g4 {[%emt 0:03:30]} Qe7 {[%emt 0:01:17]} 36. Qg3 {[%emt 0:00:30]} Qe4 {[%emt 0:00:41]} 37. Kf1 {[%emt 0:00:30]} Bc4 {[%emt 0:01:48]} 38. Re1 {[%emt 0:00:30]} Rd2 {[%emt 0:00:42]} 39. f3 {[%emt 0:00:30]} Qxe3 {[%emt 0:00:37]} 40. Qf2 {[%emt 0:00:00]} Qd3 {[%emt 0:04:21]} 41. h4 {[%emt 0:31:00]} Ne5 {[%emt 0:30:51]} 42. g5 {[%emt 0:01:30]} Nxf3 {[%emt 0:00:30]} 43. gxh6 {[%emt 0:00:30]} Nxe1 {[%emt 0:00:27]} 0-1

[Event "ESTCC 65 2019"]
[Site "Mali Losinj"]
[Date "2019.09.26"]
[Round "9.19"]
[White "Novak, Stjepan"]
[Black "Mueller, Gerhard"]
[Result "0-1"]
[ECO "B40"]
[WhiteElo "1503"]
[BlackElo "2104"]
[Annotator "NA"]
[PlyCount "106"]
[EventDate "2019.09.18"]
[EventType "team-tourn"]
[EventCountry "CRO"]
[SourceTitle "playchess.com"]
[Source "ChessBase"]
[SourceQuality "1"]
[WhiteTeam "Croatia"]
[BlackTeam "Germany"]
[WhiteTeamCountry "CRO"]
[BlackTeamCountry "GER"]
[TimeControl "40/5400+30:1800+30"]

1. e4 {[%emt 0:00:30]} c5 {[%emt 0:00:30]} 2. Bc4 {[%emt 0:00:00]} e6 {[%emt 0:00:30]} 3. Nf3 {[%emt 0:00:00]} a6 {[%emt 0:00:30]} 4. O-O {[%emt 0:00:30]} b5 {[%emt 0:01:30]} 5. Be2 {[%emt 0:00:30]} Bb7 {[%emt 0:00:30]} 6. d3 {[%emt 0:00:30]} Be7 {[%emt 0:01:30]} 7. a4 {[%emt 0:00:30]} Nc6 {[%emt 0:00:30]} 8. axb5 {[%emt 0:00:30]} axb5 {[%emt 0:00:30]} 9. Rxa8 {[%emt 0:00:30]} Qxa8 {[%emt 0:00:00]} 10. c3 {[%emt 0:01:30]} d6 {[%emt 0:03:00]} 11. h3 {[%emt 0:00:30]} Nf6 {[%emt 0:00:30]} 12. Nh2 {[%emt 0:01:30]} d5 {[%emt 0:02:30]} 13. f3 {[%emt 0:03:30]} d4 {[%emt 0:03:30]} 14. Na3 {[%emt 0:02:30]} Ba6 {[%emt 0:02:30]} 15. f4 {[%emt 0:07:30]} O-O {[%emt 0:02:30]} 16. e5 {[%emt 0:00:30]} Nd5 {[%emt 0:00:30]} 17. c4 {[%emt 0:00:30]} bxc4 {[%emt 0:00:30]} 18. dxc4 {[%emt 0:00:30]} Nc7 {[%emt 0:01:30]} 19. Bf3 {[%emt 0:04:30]} Bb7 {[%emt 0:00:30]} 20. Bxc6 {[%emt 0:03:30]} Bxc6 {[%emt 0:00:30]} 21. Rf2 {[%emt 0:00:30]} Qa4 {[%emt 0:03:30]} 22. Qxa4 {[%emt 0:06:30]} Bxa4 {[%emt 0:00:30]} 23. Nf1 {[%emt 0:00:30]} f5 {[%emt 0:06:30]} 24. Kh2 {[%emt 0:03:30]} Rb8 {[%emt 0:01:30]} 25. Nd2 {[%emt 0:03:30]} Na6 {[%emt 0:00:30]} 26. Rf1 {[%emt 0:11:30]} Bd8 {[%emt 0:01:30]} 27. Ndb1 {[%emt 0:01:30]} Nb4 {[%emt 0:02:30]} 28. Nd2 {[%emt 0:05:30]} Nd3 {[%emt 0:01:30]} 29. Kg3 {[%emt 0:03:30]} Ba5 {[%emt 0:02:30]} 30. Nab1 {[%emt 0:03:30]} Nxc1 {[%emt 0:01:30]} 31. Rxc1 {[%emt 0:01:30]} Rxb2 {[%emt 0:00:30]} 32. Nf3 {[%emt 0:00:30]} h6 {[%emt 0:01:30]} 33. Na3 {[%emt 0:04:30]} d3 {[%emt 0:02:30]} 34. Rb1 {[%emt 0:00:30]} d2 {[%emt 0:02:30]} 35. Nxd2 {[%emt 0:01:30]} Rxd2 {[%emt 0:00:00]} 36. Nb5 {[%emt 0:00:00]} Rd3+ {[%emt 0:00:00]} 37. Kh2 {[%emt 0:00:00]} Rb3 {[%emt 0:00:30]} 38. Ra1 {[%emt 0:00:30]} Bxb5 {[%emt 0:01:30]} 39. Rxa5 {[%emt 0:00:30]} Bxc4 {[%emt 0:00:30]} 40. Rxc5 {[%emt 0:00:30]} Bd5 {[%emt 0:00:00]} 41. Rc2 {[%emt 0:30:30]} Ra3 {[%emt 0:30:00]} 42. Rf2 {[%emt 0:00:30]} Ra2 {[%emt 0:00:30]} 43. Kg3 {[%emt 0:01:30]} Rxf2 {[%emt 0:00:00]} 44. Kxf2 {[%emt 0:00:00]} Kf7 {[%emt 0:00:00]} 45. g4 {[%emt 0:01:00]} Be4 {[%emt 0:00:30]} 46. Kg3 {[%emt 0:00:30]} g6 {[%emt 0:00:30]} 47. h4 {[%emt 0:01:30]} h5 {[%emt 0:00:30]} 48. g5 {[%emt 0:00:30]} Ke7 {[%emt 0:00:00]} 49. Kf2 {[%emt 0:00:00]} Kd7 {[%emt 0:00:00]} 50. Ke3 {[%emt 0:00:00]} Kc6 {[%emt 0:00:00]} 51. Kd4 {[%emt 0:00:30]} Kb5 {[%emt 0:00:00]} 52. Ke3 {[%emt 0:00:30]} Kc4 {[%emt 0:00:30]} 53. Kf2 {[%emt 0:00:00]} Kd3 {[%emt 0:00:00]} 0-1

[Event "ESTCC 65 2019"]
[Site "Mali Losinj"]
[Date "2019.09.26"]
[Round "9.20"]
[White "Thoele, Wolfgang"]
[Black "Petanjek, Zvonko"]
[Result "1/2-1/2"]
[ECO "C50"]
[WhiteElo "1865"]
[BlackElo "1650"]
[Annotator "NA"]
[PlyCount "84"]
[EventDate "2019.09.18"]
[EventType "team-tourn"]
[EventCountry "CRO"]
[SourceTitle "playchess.com"]
[Source "ChessBase"]
[SourceQuality "1"]
[WhiteTeam "Germany"]
[BlackTeam "Croatia"]
[WhiteTeamCountry "GER"]
[BlackTeamCountry "CRO"]
[TimeControl "40/5400+30:1800+30"]

1. e4 {[%emt 0:00:30]} e5 {[%emt 0:00:30]} 2. Nf3 {[%emt 0:00:00]} Nc6 {[%emt 0:00:00]} 3. Bc4 {[%emt 0:00:00]} Bc5 {[%emt 0:01:00]} 4. d3 {[%emt 0:00:30]} h6 {[%emt 0:00:30]} 5. O-O {[%emt 0:01:30]} d6 {[%emt 0:00:30]} 6. h3 {[%emt 0:01:30]} a6 {[%emt 0:00:00]} 7. a4 {[%emt 0:01:30]} Be6 {[%emt 0:01:00]} 8. Bxe6 {[%emt 0:00:30]} fxe6 {[%emt 0:00:00]} 9. c3 {[%emt 0:01:30]} Nf6 {[%emt 0:00:00]} 10. b4 {[%emt 0:04:30]} Ba7 {[%emt 0:03:30]} 11. Qb3 {[%emt 0:00:30]} Qe7 {[%emt 0:00:30]} 12. Nbd2 {[%emt 0:02:30]} O-O {[%emt 0:00:00]} 13. Nc4 {[%emt 0:01:30]} b5 {[%emt 0:02:00]} 14. Ne3 {[%emt 0:01:30]} Nh5 {[%emt 0:01:30]} 15. axb5 {[%emt 0:06:30]} axb5 {[%emt 0:00:30]} 16. Ng4 {[%emt 0:09:30]} Nf6 {[%emt 0:01:30]} 17. Nxf6+ {[%emt 0:00:30]} Qxf6 {[%emt 0:00:30]} 18. Be3 {[%emt 0:00:30]} Bxe3 {[%emt 0:05:30]} 19. fxe3 {[%emt 0:00:30]} Qe7 {[%emt 0:03:30]} 20. Ra2 {[%emt 0:00:30]} Rxa2 {[%emt 0:04:30]} 21. Qxa2 {[%emt 0:00:30]} Rb8 {[%emt 0:00:30]} 22. Ra1 {[%emt 0:01:30]} Kh7 {[%emt 0:00:30]} 23. Qc2 {[%emt 0:01:30]} Kh8 {[%emt 0:00:30]} 24. Ra6 {[%emt 0:01:30]} Nd8 {[%emt 0:00:30]} 25. d4 {[%emt 0:00:30]} Nf7 {[%emt 0:01:30]} 26. Ra7 {[%emt 0:04:30]} Qd8 {[%emt 0:02:30]} 27. Qa2 {[%emt 0:01:30]} Qc8 {[%emt 0:02:30]} 28. Ra5 {[%emt 0:11:30]} exd4 {[%emt 0:02:30]} 29. exd4 {[%emt 0:00:30]} Nd8 {[%emt 0:01:30]} 30. Qe2 {[%emt 0:03:30]} c6 {[%emt 0:02:30]} 31. e5 {[%emt 0:00:30]} d5 {[%emt 0:00:00]} 32. Nh4 {[%emt 0:00:30]} Nb7 {[%emt 0:01:00]} 33. Ng6+ {[%emt 0:01:30]} Kh7 {[%emt 0:00:30]} 34. Qd3 {[%emt 0:00:30]} Qe8 {[%emt 0:01:30]} 35. Nf4+ {[%emt 0:01:30]} Kg8 {[%emt 0:00:00]} 36. Ra7 {[%emt 0:00:30]} Nd8 {[%emt 0:00:00]} 37. Qg3 {[%emt 0:00:30]} Rb7 {[%emt 0:02:30]} 38. Ra8 {[%emt 0:00:30]} Rd7 {[%emt 0:00:00]} 39. Qg4 {[%emt 0:00:30]} Kh7 {[%emt 0:01:00]} 40. Nh5 {[%emt 0:02:30]} Qg6 {[%emt 0:00:30]} 41. Qxg6+ {[%emt 0:30:30]} Kxg6 {[%emt 0:29:30]} 42. Nf4+ {[%emt 0:00:30]} Kf5 {[%emt 0:00:30]} 1/2-1/2

[Event "ESTCC 65 2019"]
[Site "Mali Losinj"]
[Date "2019.09.26"]
[Round "9.21"]
[White "Peltola, Leo"]
[Black "Hutchinson, Paul A"]
[Result "0-1"]
[ECO "B01"]
[WhiteElo "1966"]
[BlackElo "2124"]
[Annotator "NA"]
[PlyCount "90"]
[EventDate "2019.09.18"]
[EventType "team-tourn"]
[EventCountry "CRO"]
[SourceTitle "playchess.com"]
[Source "ChessBase"]
[SourceQuality "1"]
[WhiteTeam "Finland"]
[BlackTeam "England"]
[WhiteTeamCountry "FIN"]
[BlackTeamCountry "ENG"]
[TimeControl "40/5400+30:1800+30"]

1. e4 {[%emt 0:00:30]} d5 {[%emt 0:00:30]} 2. exd5 {[%emt 0:00:00]} Qxd5 {[%emt 0:00:00]} 3. Nc3 {[%emt 0:00:00]} Qd6 {[%emt 0:00:00]} 4. d4 {[%emt 0:00:30]} Nf6 {[%emt 0:00:00]} 5. Nf3 {[%emt 0:00:30]} Nc6 {[%emt 0:00:00]} 6. Nb5 {[%emt 0:01:30]} Qd8 {[%emt 0:01:30]} 7. Bf4 {[%emt 0:02:30]} Nd5 {[%emt 0:00:30]} 8. Bg3 {[%emt 0:00:30]} a6 {[%emt 0:00:30]} 9. Nc3 {[%emt 0:00:30]} Bg4 {[%emt 0:24:30]} 10. Be2 {[%emt 0:01:30]} e6 {[%emt 0:01:30]} 11. Nxd5 {[%emt 0:02:30]} exd5 {[%emt 0:01:30]} 12. O-O {[%emt 0:00:30]} Bd6 {[%emt 0:01:30]} 13. Ne5 {[%emt 0:07:30]} Bxe2 {[%emt 0:12:30]} 14. Qxe2 {[%emt 0:00:30]} O-O {[%emt 0:00:30]} 15. Nxc6 {[%emt 0:00:30]} bxc6 {[%emt 0:00:00]} 16. Qf3 {[%emt 0:02:30]} Rb8 {[%emt 0:09:00]} 17. b3 {[%emt 0:03:30]} Ba3 {[%emt 0:01:30]} 18. Rad1 {[%emt 0:01:30]} a5 {[%emt 0:00:30]} 19. h4 {[%emt 0:05:30]} a4 {[%emt 0:01:30]} 20. h5 {[%emt 0:02:30]} h6 {[%emt 0:00:30]} 21. Be5 {[%emt 0:03:30]} Bd6 {[%emt 0:04:30]} 22. Rfe1 {[%emt 0:01:30]} Qd7 {[%emt 0:05:30]} 23. Re3 {[%emt 0:04:30]} axb3 {[%emt 0:00:30]} 24. axb3 {[%emt 0:00:30]} Rbe8 {[%emt 0:00:30]} 25. Rde1 {[%emt 0:01:30]} f6 {[%emt 0:13:30]} 26. Bxd6 {[%emt 0:02:30]} cxd6 {[%emt 0:00:00]} 27. Rxe8 {[%emt 0:04:30]} Rxe8 {[%emt 0:00:00]} 28. Rxe8+ {[%emt 0:00:00]} Qxe8 {[%emt 0:00:00]} 29. Qf5 {[%emt 0:02:00]} Kf8 {[%emt 0:01:00]} 30. Kf1 {[%emt 0:00:30]} Ke7 {[%emt 0:00:30]} 31. g4 {[%emt 0:04:30]} Qa8 {[%emt 0:07:13]} 32. Kg2 {[%emt 0:03:30]} Qe8 {[%emt 0:03:37]} 33. Qf4 {[%emt 0:01:30]} Kd7 {[%emt 0:00:18]} 34. Qe3 {[%emt 0:01:30]} Qxe3 {[%emt 0:03:03]} 35. fxe3 {[%emt 0:00:30]} Ke6 {[%emt 0:00:07]} 36. Kf3 {[%emt 0:01:30]} f5 {[%emt 0:00:11]} 37. Kf4 {[%emt 0:03:30]} fxg4 {[%emt 0:00:11]} 38. Kxg4 {[%emt 0:00:00]} Kf6 {[%emt 0:00:07]} 39. c4 {[%emt 0:01:00]} dxc4 {[%emt 0:00:07]} 40. bxc4 {[%emt 0:00:30]} g6 {[%emt 0:00:52]} 41. hxg6 {[%emt 0:30:30]} Kxg6 {[%emt 0:30:05]} 42. e4 {[%emt 0:00:30]} Kf6 {[%emt 0:01:41]} 43. Kh5 {[%emt 0:02:30]} c5 {[%emt 0:00:23]} 44. e5+ {[%emt 0:03:30]} Ke6 {[%emt 0:00:24]} 45. dxc5 {[%emt 0:01:30]} dxc5 {[%emt 0:00:06]} 0-1

[Event "ESTCC 65 2019"]
[Site "Mali Losinj"]
[Date "2019.09.26"]
[Round "9.22"]
[White "Hewson, Brian W R"]
[Black "Karppinen, Martti"]
[Result "1-0"]
[ECO "D02"]
[WhiteElo "2074"]
[BlackElo "1925"]
[Annotator "NA"]
[PlyCount "123"]
[EventDate "2019.09.18"]
[EventType "team-tourn"]
[EventCountry "CRO"]
[SourceTitle "playchess.com"]
[Source "ChessBase"]
[SourceQuality "1"]
[WhiteTeam "England"]
[BlackTeam "Finland"]
[WhiteTeamCountry "ENG"]
[BlackTeamCountry "FIN"]
[TimeControl "40/5400+30:1800+30"]

1. Nf3 {[%emt 0:00:30]} d5 {[%emt 0:00:30]} 2. g3 {[%emt 0:00:30]} Nc6 {[%emt 0:00:30]} 3. d4 {[%emt 0:00:00]} Bf5 {[%emt 0:01:30]} 4. Bg2 {[%emt 0:00:00]} e6 {[%emt 0:01:30]} 5. Nh4 {[%emt 0:03:30]} Bg6 {[%emt 0:02:30]} 6. Nxg6 {[%emt 0:00:30]} hxg6 {[%emt 0:00:30]} 7. c3 {[%emt 0:03:30]} Nf6 {[%emt 0:02:30]} 8. Bg5 {[%emt 0:00:00]} Be7 {[%emt 0:01:30]} 9. Nd2 {[%emt 0:01:00]} Ng4 {[%emt 0:02:30]} 10. Bxe7 {[%emt 0:04:30]} Qxe7 {[%emt 0:03:30]} 11. e4 {[%emt 0:06:30]} f5 {[%emt 0:08:30]} 12. h3 {[%emt 0:12:30]} Nf6 {[%emt 0:04:30]} 13. e5 {[%emt 0:03:30]} Nd7 {[%emt 0:07:30]} 14. Qe2 {[%emt 0:03:30]} Nb6 {[%emt 0:00:30]} 15. a4 {[%emt 0:03:30]} a5 {[%emt 0:02:30]} 16. Qd3 {[%emt 0:05:30]} Rd8 {[%emt 0:10:30]} 17. Ke2 {[%emt 0:04:30]} Kf7 {[%emt 0:03:30]} 18. f4 {[%emt 0:01:30]} g5 {[%emt 0:01:30]} 19. Nf3 {[%emt 0:00:30]} gxf4 {[%emt 0:01:30]} 20. gxf4 {[%emt 0:00:30]} Rh6 {[%emt 0:02:30]} 21. Ng5+ {[%emt 0:00:30]} Ke8 {[%emt 0:01:30]} 22. b3 {[%emt 0:01:30]} Rh4 {[%emt 0:05:30]} 23. Qg3 {[%emt 0:00:30]} Rh6 {[%emt 0:00:30]} 24. Kf2 {[%emt 0:02:30]} Kd7 {[%emt 0:02:30]} 25. Bf1 {[%emt 0:00:30]} Kc8 {[%emt 0:00:30]} 26. Bb5 {[%emt 0:03:30]} Na7 {[%emt 0:01:30]} 27. Qe3 {[%emt 0:03:30]} Rg6 {[%emt 0:04:30]} 28. Be2 {[%emt 0:02:30]} Rh8 {[%emt 0:01:30]} 29. Rhg1 {[%emt 0:03:30]} Nc6 {[%emt 0:00:30]} 30. Bd3 {[%emt 0:01:30]} Rgh6 {[%emt 0:01:30]} 31. Rg3 {[%emt 0:08:30]} Nd8 {[%emt 0:04:30]} 32. c4 {[%emt 0:05:57]} Nc6 {[%emt 0:03:37]} 33. c5 {[%emt 0:03:09]} Nd7 {[%emt 0:00:31]} 34. Bb5 {[%emt 0:01:14]} Ndb8 {[%emt 0:03:07]} 35. Rag1 {[%emt 0:03:12]} Rg6 {[%emt 0:05:35]} 36. Qc3 {[%emt 0:05:31]} Nb4 {[%emt 0:02:26]} 37. Bf1 {[%emt 0:00:26]} N8c6 {[%emt 0:00:51]} 38. Nf3 {[%emt 0:00:35]} Rxg3 {[%emt 0:00:24]} 39. Rxg3 {[%emt 0:00:05]} Rh6 {[%emt 0:02:26]} 40. Ke3 {[%emt 0:01:11]} Na2 {[%emt 0:02:35]} 41. Qd2 {[%emt 0:30:39]} Nab4 {[%emt 0:30:50]} 42. Qg2 {[%emt 0:00:00]} Rh7 {[%emt 0:00:00]} 43. h4 {[%emt 0:00:00]} Kb8 {[%emt 0:00:00]} 44. Rg6 {[%emt 0:00:00]} Qf7 {[%emt 0:00:00]} 45. h5 {[%emt 0:00:00]} Qe8 {[%emt 0:00:00]} 46. Bb5 {[%emt 0:00:00]} Rxh5 {[%emt 0:00:00]} 47. Rxg7 {[%emt 0:00:00]} Rh8 {[%emt 0:00:00]} 48. Bxc6 {[%emt 0:00:00]} Nxc6 {[%emt 0:00:00]} 49. Qg6 {[%emt 0:00:00]} Qxg6 {[%emt 0:00:00]} 50. Rxg6 {[%emt 0:00:00]} Rh3 {[%emt 0:00:00]} 51. Kf2 {[%emt 0:00:00]} Ka7 {[%emt 0:00:00]} 52. Kg2 {[%emt 0:01:27]} Rxf3 {[%emt 0:01:39]} 53. Kxf3 {[%emt 0:00:06]} Nxd4+ {[%emt 0:00:11]} 54. Ke3 {[%emt 0:00:22]} Nxb3 {[%emt 0:00:24]} 55. Rxe6 {[%emt 0:00:39]} d4+ {[%emt 0:00:30]} 56. Kf2 {[%emt 0:00:24]} Nxc5 {[%emt 0:00:25]} 57. Rf6 {[%emt 0:01:00]} Ne4+ {[%emt 0:00:41]} 58. Ke1 {[%emt 0:01:34]} c5 {[%emt 0:02:04]} 59. Rxf5 {[%emt 0:00:09]} d3 {[%emt 0:00:37]} 60. e6 {[%emt 0:00:20]} c4 {[%emt 0:01:02]} 61. Re5 {[%emt 0:03:01]} Nd6 {[%emt 0:04:43]} 62. Kd2 {[%emt 0:00:58]} 1-0